Cogmind - Beta 16.1 @@@ ROGUE MODE // 2026.04.23 @ 02:15:34 Player: shapeshifter Result: Destroyed by S-43 Plague with Heavy Machine Gun Performance ------------- Evolutions (8) 4000 Regions Visited (23) 4600 Robots Destroyed (248) 1240 Value Destroyed (12486) 12486 Prototype IDs (84) 1680 Alien Tech Used (5) 1000 Bonus (12702) 12702 TOTAL SCORE: 37708 Bonus ------- High Alert Combat Kills 599 Hunted by Unchained 500 Subatomizer Sterilization 3000 Met Zhirov 300 Met Warlord at Base 500 MAIN.C Attacked Warlord 500 Warlord Defense Kills 1498 Used Core Reset Matrix 3000 Hacked Protovariant 500 Met Warlord at Research 2000 Scanned by Researcher 500 Friendly Fire -195 Cogmind --------- Core Integrity 0/1450 Matter 35/300 Energy 59/100 System Corruption 10% Temperature Cool (0) Movement Flying (45) Location -2/Section 7 Parts ------- > --- POWER (3) -------- (None) > --- PROPULSION (5) --- Impulse Thruster Array > --- UTILITY (11) ----- Experimental Targeting Computer Experimental ECM Suite > --- WEAPON (4) ------- (None) > --- INVENTORY (5) ---- Core Stripper Peak State ------------ > --- POWER ------------ Multi-Quantum Reactor > --- PROPULSION ------- Hovering Gyrokinetic-HC Exoskeleton > --- UTILITY ---------- Armored Scrap Engine Advanced Cryofiber Web Advanced Heat Sink Experimental Cooling System High-capacity Storage Unit Experimental Targeting Computer Improved Weapon Cycler Experimental ECM Suite Graphene Brace Ghost Barrier > --- WEAPON ----------- Hpw. Kinetic Penetrator Construct/G Hpw. EM HERF Construct/C > --- INVENTORY -------- Advanced Power Amplifier Experimental Power Amplifier Experimental Matter Compressor Improved Force Field Advanced Recalibrator Dimensional Node Initializer Dimensional Node Initializer Transdimensional Reconstructor Transdimensional Reconstructor High-powered Transdimensional Reconstructor Terrabomb Null Cannon Vortex Catalyst Activator Sigix Terminator Containment Facilitator Core Stripper Portable AFG [Rating: 202] Favorites ----------- Power Constructs Engine Light Ion Engine Power Core Nuclear Core Reactor Constructs Propulsion Constructs Treads Light Treads Wheel Wheel Hover Unit Constructs Utility Armored Scrap Engine Device Armored Scrap Engine Storage Large Storage Unit Processor Experimental Targeting Computer Hackware Advanced Hacking Suite Protection Scrap Shield Weapon Constructs Energy Gun Precision Beam Rifle Energy Cannon Constructs Ballistic Gun Constructs Ballistic Cannon Flak Cannon Launcher Proton Missile Launcher Special Weapon Multitool Slashing Weapon Phasing Sabre Build | -11 -10 -10 -8 -7 -7 -7 -5 -5 -5 -5 -4 -4 -4 -4 -4 -4 -4 -3 -3 -3 -2 -2 -2 ------- Run | Yrd Mat Sub Mat Fac Sto Rec Fac Upp Upp Zhi Pro Fac Was Fac Upp Upp War Pro Res Tes Res Qua Sec Slots Evolved 16 | . . . 4 2 . . 4 . . . . 2 . . . . . . 2 . 2 . . Power 2 | . . . . . . . 1 . . . . . . . . . . . 1 . . . . Propulsion 3 | . . . 2 . . . 1 . . . . . . . . . . . . . . . . Utility 9 | . . . 1 1 . . 2 . . . . 2 . . . . . . 1 . 2 . . Weapon 2 | . . . 1 1 . . . . . . . . . . . . . . . . . . . Parts Attached 155 | 7 3 20 11 8 3 12 21 3 . 3 . 2 . 9 3 . 14 2 2 18 8 2 4 Power 10 | 1 . 1 1 1 . 1 . . . . . . . . . . 2 . . 2 . . 1 Engine 5 | 1 . 1 1 . . 1 . . . . . . . . . . . . . 1 . . . Core 2 | . . . . 1 . . . . . . . . . . . . . . . . . . 1 Reactor 3 | . . . . . . . . . . . . . . . . . 2 . . 1 . . . Propulsion 28 | 2 . 10 4 3 2 4 1 . . . . . . . . . . . . . . . 2 Treads 6 | 2 . . 3 . . 1 . . . . . . . . . . . . . . . . . Leg . | . . . . . . . . . . . . . . . . . . . . . . . . Wheel 18 | . . 10 1 3 2 2 . . . . . . . . . . . . . . . . . Hover 3 | . . . . . . 1 1 . . . . . . . . . . . . . . . 1 Flight 1 | . . . . . . . . . . . . . . . . . . . . . . . 1 Utility 65 | 2 1 3 1 3 . 4 9 3 . 2 . 2 . 5 3 . 7 2 1 7 8 2 . Device 34 | 1 . . 1 1 . 1 6 . . 1 . . . 3 2 . 4 1 . 5 6 2 . Storage 10 | 1 1 1 . . . 2 1 . . 1 . . . . 1 . 1 . . . 1 . . Processor 6 | . . . . . . . 2 . . . . . . 1 . . 1 1 . 1 . . . Hackware 5 | . . . . . . . . 1 . . . 1 . . . . . . 1 1 1 . . Protection 10 | . . 2 . 2 . 1 . 2 . . . 1 . 1 . . 1 . . . . . . Artifact . | . . . . . . . . . . . . . . . . . . . . . . . . Weapon 52 | 2 2 6 5 1 1 3 11 . . 1 . . . 4 . . 5 . 1 9 . . 1 Energy Gun 8 | . . . 4 . . . 2 . . . . . . . . . 1 . . 1 . . . Energy Cannon 11 | . . 2 . 1 . 1 2 . . . . . . 1 . . 1 . 1 2 . . . Ballistic Gun 13 | 2 2 4 . . 1 . . . . . . . . 2 . . 2 . . . . . . Ballistic Cannon 6 | . . . . . . 1 2 . . . . . . 1 . . . . . 2 . . . Launcher 8 | . . . . . . 1 4 . . . . . . . . . . . . 2 . . 1 Special Weapon 5 | . . . 1 . . . 1 . . 1 . . . . . . . . . 2 . . . Impact Weapon . | . . . . . . . . . . . . . . . . . . . . . . . . Slashing Weapon 1 | . . . . . . . . . . . . . . . . . 1 . . . . . . Piercing Weapon . | . . . . . . . . . . . . . . . . . . . . . . . . Special Melee Weapon . | . . . . . . . . . . . . . . . . . . . . . . . . Unidentified Prototypes 29 | . . . 2 . . 1 3 . . 2 . . . 1 . . 5 . . 7 3 4 1 Corrupted Parts 1 | . . . . . . . . . . 1 . . . . . . . . . . . . . System Corruption 10 | . . . . . . . . . . 10 . . . . . . . . . . . . . Parts Lost 77 | . . 1 1 . 2 8 16 . . . . 1 . 4 . 2 3 8 2 7 2 14 6 Power 14 | . . . 1 . . 1 2 . . . . . . . . 1 2 2 . 1 . 3 1 Propulsion 12 | . . 1 . . 2 4 3 . . . . . . . . . . . 1 . . . 1 Utility 32 | . . . . . . 2 5 . . . . 1 . 3 . 1 . 4 . 4 2 7 3 Weapon 19 | . . . . . . 1 6 . . . . . . 1 . . 1 2 1 2 . 4 1 Highest Loss Streak 7 | . . 1 1 . 1 7 6 . . . . 1 . 2 . 1 2 6 1 5 1 7 4 To Critical Strikes . | . . . . . . . . . . . . . . . . . . . . . . . . Average Backups 11 | 2 8 3 9 21 27 17 15 7 4 4 5 4 6 12 8 8 12 11 10 11 9 12 12 Power . | 1 1 . . . . . . . . . . . . . . . . . . . . . . Propulsion 1 | . . . 2 6 6 2 . . . . . . . . . . . . . . . . . Utility 4 | . 3 1 2 1 4 6 8 3 2 2 3 2 4 8 5 6 9 8 7 7 5 4 3 Weapon 3 | . 3 1 3 11 13 7 4 1 . . . . . 1 1 . 1 1 1 1 2 4 3 Tool/Special . | . . . . . . . . . . . . . . . . . . . . . . . . Unused Backups 82 | . 3 3 1 2 2 17 15 5 . . . . . 7 3 . 6 . . 4 . 4 10 Power . | . . . . . . . . . . . . . . . . . . . . . . . . Propulsion 10 | . . . . . . 6 3 . . . . . . 1 . . . . . . . . . Utility 29 | . 2 2 1 . . 1 8 1 . . . . . 4 . . 3 . . 3 . 1 3 Weapon 37 | . 1 1 . 2 2 9 4 4 . . . . . 2 3 . 3 . . 1 . 2 3 Tool/Special 6 | . . . . . . 1 . . . . . . . . . . . . . . . 1 4 Average Slot Usage (%) 64 | . 99 84 75 88 88 55 46 45 47 46 52 53 52 54 51 51 52 51 32 56 53 54 31 Engine 4 | . 13 14 7 . . 6 2 . . . . . . . . . 1 . . . . . . Core 1 | . . . . 6 6 . 1 5 5 5 5 5 5 1 . . . . . . . . . Reactor 1 | . . . . . . . . . . . . . . 3 5 5 4 4 . 4 3 3 1 Treads 5 | . 28 12 11 4 . 3 . . . . . . . . . . . . . . . . . Wheel 7 | . . 15 18 25 29 4 . . . . . . . . . . . . . . . . . Hover 1 | . . . . . . 1 2 1 . 3 5 5 5 2 . . 2 . . 1 . 2 2 Device 12 | . 14 . 6 7 7 12 15 17 17 19 23 21 15 11 25 25 20 21 15 18 23 26 15 Storage 5 | . 14 1 9 7 7 7 4 5 . . . . 5 5 5 5 5 5 4 4 4 4 4 Processor 1 | . . . . . . . 5 . . . . . . 4 . . . 3 4 6 4 4 4 Hackware 1 | . . . . . . . . . . . . 5 5 5 5 5 5 1 . 6 3 2 . Protection 4 | . . 12 . 6 7 1 . 3 11 7 5 6 5 4 . . 4 1 . . . . . Energy Gun 3 | . . . 10 23 23 4 . . . . . . . . . . . . . 1 . . . Energy Cannon 4 | . . 13 5 . . 1 . 1 . . . . . 2 . . 3 1 1 2 8 5 . Ballistic Gun 5 | . 27 14 7 . 2 2 . . . . . . . 2 5 2 . 2 . . . . . Ballistic Cannon 1 | . . . . . . 5 4 3 5 5 5 5 5 2 . 2 1 3 . 2 . 1 . Peak Build Rating 202 | 7 10 38 55 63 50 60 101 80 75 93 97 108 104 139 116 119 144 137 88 148 186 202 134 Average Rating 71 | 4 9 13 47 46 47 48 77 73 70 81 95 104 103 115 114 113 112 116 79 126 162 181 110 On Entrance 79 | . 7 10 38 54 46 50 55 65 69 75 93 97 104 104 107 114 115 135 77 81 128 183 112 Avg Prop Armor Cover (%) 5 | . . 3 14 7 . 11 . . . . . . . . . . . . . . . . . Naked Turns . | . . . . . . . . . . . . . . . . . . . . . . . . Heaviest Build 296 | 14 32 215 218 225 226 296 72 50 31 33 33 56 55 90 53 62 77 68 35 92 127 116 78 Greatest Support 187 | 40 40 40 30 42 42 75 81 104 104 104 120 120 120 187 76 93 145 140 140 140 179 179 92 Greatest Overweight (x) 31 | . . 10 10 11 7 31 2 . . . . . . . . . 15 . . 1 1 1 4 Average Overweight (x) 1 | . . 1 7 6 5 2 . . . . . . . . . . . . . . . . . Largest Inventory Capacity 35 | 8 15 35 35 35 35 35 20 15 5 5 5 15 15 15 15 15 15 15 15 15 20 20 20 Average Capacity 18 | 7 13 7 35 35 35 22 17 14 5 5 5 5 15 15 15 15 15 15 15 15 18 20 19 Most Carried 35 | 5 10 28 35 35 35 35 20 9 4 5 5 7 8 15 13 10 15 15 15 15 14 20 20 Average Carried 14 | 2 8 6 32 30 34 19 15 6 4 4 5 4 7 13 9 9 13 13 12 13 11 16 17 Final Capacity 35 | 8 15 35 35 35 35 20 20 5 5 5 5 15 15 15 15 15 15 15 15 15 20 20 20 Final Carried 35 | 4 9 28 35 31 35 20 17 4 4 5 5 7 7 14 9 9 15 12 13 14 10 15 19 Scrap Engine Consumption 392 | . . . . . . 77 69 24 2 5 . 13 4 19 5 4 47 9 . 29 52 27 6 Constructs Created 11 | . . . . . . 3 2 . . . . . . 1 . . . 1 . 3 . . 1 Constructs Modified 166 | . . . . . . 29 26 15 1 1 1 1 . 14 1 4 15 9 . 12 20 15 2 Class Distribution -------------------- 34% | Construct 16% | Subdweller-Mutant 11% | Mutant 11% | Hacker-Construct 9% | Hauler-Tank 3% | Hauler-Mutant 3% | Hauler-Gunner 3% | Tank Dominant Class ---------------- Mutant | -10/Materials Subdweller-Mutant | -10/Subcaves Hauler-Gunner | -8/Materials Hauler-Tank | -7/Factory Hauler-Tank | -7/Storage Construct | -7/Recycling Construct | -5/Factory Construct | -5/Upper Caves Construct | -5/Upper Caves Construct | -5/Zhirov Construct | -4/Proximity Caves Construct | -4/Factory Construct | -4/Waste Construct | -4/Factory Construct | -4/Upper Caves Construct | -4/Upper Caves Construct | -4/Warlord Construct | -3/Proximity Caves Mutant | -3/Research Hacker-Gunner | -3/Testing Hacker-Construct | -2/Research Hacker-Construct | -2/Quarantine Mutant | -2/Section 7 Resources | -11 -10 -10 -8 -7 -7 -7 -5 -5 -5 -5 -4 -4 -4 -4 -4 -4 -4 -3 -3 -3 -2 -2 -2 ----------- Run | Yrd Mat Sub Mat Fac Sto Rec Fac Upp Upp Zhi Pro Fac Was Fac Upp Upp War Pro Res Tes Res Qua Sec Matter Collected 8184 | 318 205 619 274 96 149 437 841 54 37 . 80 148 . 652 49 121 1225 87 . 585 827 1336 44 Remotely . | . . . . . . . . . . . . . . . . . . . . . . . . Salvage Created 12490 | 207 376 825 865 247 647 567 2206 236 . . . 231 . 1065 . 186 884 311 . 845 871 1921 . Parts 585 | 15 22 62 44 18 24 27 121 11 . . . 15 . 44 . 12 35 13 . 46 27 49 . Haulers Intercepted 7 | . . . 3 . 1 . 2 . . . . . . 1 . . . . . . . . . Recyclers Shooed 1 | . . . 1 . . . . . . . . . . . . . . . . . . . . Parts Field Recycled . | . . . . . . . . . . . . . . . . . . . . . . . . Retrieved Matter . | . . . . . . . . . . . . . . . . . . . . . . . . Parts Self-Destructed 45 | . . 25 . . . . . 1 . . . . . . . 8 . 11 . . . . . Prevented 5 | . . . . . . . . 5 . . . . . . . . . . . . . . . Parts Restored . | . . . . . . . . . . . . . . . . . . . . . . . . Kills | -11 -10 -10 -8 -7 -7 -7 -5 -5 -5 -5 -4 -4 -4 -4 -4 -4 -4 -3 -3 -3 -2 -2 -2 ------- Run | Yrd Mat Sub Mat Fac Sto Rec Fac Upp Upp Zhi Pro Fac Was Fac Upp Upp War Pro Res Tes Res Qua Sec Combat Hostiles Destroyed 186 | . 7 17 15 4 8 8 32 3 . . . 3 . 13 . 3 13 6 . 15 13 26 . Guns 57 | . 7 6 13 4 8 5 2 . . . . . . 6 . 2 . 1 . 2 . 1 . Cannons 88 | . . 10 1 . . 3 25 2 . . . 2 . 2 . 1 13 5 . 9 3 12 . AOE 13 | . . . . . . . 4 . . . . . . 2 . . . . . 4 . 3 . Classes Destroyed 27 | 2 5 4 3 1 . 2 3 1 . . . . . . . . 1 . . 1 2 2 . Worker 15 | . 4 . 2 2 2 . 3 . . . . . . 1 . . . . . 1 . . . Builder 8 | . 1 . . 1 . 1 3 . . . . . . 1 . . . . . 1 . . . Tunneler 7 | 5 . . 1 . . . 1 . . . . . . . . . . . . . . . . Hauler 7 | . . . 3 . 1 . 2 . . . . . . 1 . . . . . . . . . Recycler 4 | 1 . . . . 2 . 1 . . . . . . . . . . . . . . . . Mechanic 2 | . . . . . . . 1 . . . . . . . . . 1 . . . . . . Operator 5 | . . . 1 . . . . . . . . . . 1 . . . . . 2 . 1 . Drone 4 | . . . . . . . 3 . . . . . . . . . . 1 . . . . . Turret 2 | . . 2 . . . . . . . . . . . . . . . . . . . . . Watcher 9 | . 1 . 1 . . . 2 . . . . . . . . . . . . 2 . 3 . Swarmer 14 | . 1 2 3 . . . 4 . . . . . . . . . 1 2 . . 1 . . Saboteur 1 | . . . . . . . 1 . . . . . . . . . . . . . . . . Grunt 59 | . 6 2 8 2 4 . 11 . . . . 1 . 7 . . 4 . . 4 . 10 . Brawler 1 | . . . . . . . . . . . . . . . . . . . . 1 . . . Duelist 4 | . . . . . . . . . . . . . . . . . 2 . . . . 2 . Protector 6 | . . . . . . 1 . . . . . . . . . . 4 . . 1 . . . Sentry 22 | . . 1 3 1 2 4 3 . . . . 2 . 2 . . . 1 . . . 3 . Demolisher 4 | . . . . . . 1 . . . . . . . . . . 2 . . . 1 . . Hunter 22 | . . . 1 . 1 1 4 2 . . . . . 3 . 2 . 2 . . 3 3 . Programmer 27 | . . . . 1 1 1 6 1 . . . . . 1 . 1 . . . 9 2 4 . Q-Series 3 | . . . . . . . . . . . . . . . . . . . . . . 3 . Investigator 1 | . . . . . . . . . . . . . . . . . . . . 1 . . . Striker 5 | . . . . . . . . . . . . . . . . . . . . . 5 . . Executioner 1 | . . . . . . . . . . . . . . . . . . . . . 1 . . Alpha 7 1 | . . . . . . . . . . . . . . . . . . . . . . 1 . Cobbler 1 | . . 1 . . . . . . . . . . . . . . . . . . . . . Subdweller 13 | . . 12 . . . 1 . . . . . . . . . . . . . . . . . Savage 1 | . . . . . . . . 1 . . . . . . . . . . . . . . . Best Kill Streak 8 | 4 4 2 6 3 4 4 7 2 . . . 2 . 6 . 1 5 3 . 8 5 4 . Combat Bots Only 6 | . 2 2 4 2 3 4 4 2 . . . 2 . 6 . 1 5 3 . 5 5 4 . Max Kills in Single Turn 4 | 1 2 1 2 1 1 2 4 1 . . . 1 . 2 . 1 1 1 . 3 1 3 . Gunslinging 1 | . . . 1 . . . . . . . . . . . . . . . . . . . . Exploded 3 | . . . . . . . 3 . . . . . . 1 . . . . . 2 . 3 . Melee . | . . . . . . . . . . . . . . . . . . . . . . . . Uniques/NPCs Destroyed . | . . . . . . . . . . . . . . . . . . . . . . . . Combat | -11 -10 -10 -8 -7 -7 -7 -5 -5 -5 -5 -4 -4 -4 -4 -4 -4 -4 -3 -3 -3 -2 -2 -2 -------- Run | Yrd Mat Sub Mat Fac Sto Rec Fac Upp Upp Zhi Pro Fac Was Fac Upp Upp War Pro Res Tes Res Qua Sec Hostile Shots Fired 1995 | . 30 111 56 27 117 120 340 20 40 . 30 28 . 181 . 158 82 64 44 136 76 222 113 Missed 705 | . 6 47 21 9 42 35 93 8 14 . 22 18 . 82 . 69 28 18 18 30 26 80 39 Hits 1290 | . 24 64 35 18 75 85 247 12 26 . 8 10 . 99 . 89 54 46 26 106 50 142 74 Melee 3 | . . . . . . . . . . . . . . . . . . . . . 3 . . Projectile 1287 | . 24 64 35 18 75 85 247 12 26 . 8 10 . 99 . 89 54 46 26 106 47 142 74 AOE 72 | . . . . . . 4 2 . . . . . . . . . 5 24 . 1 6 30 . Critical Strikes 70 | . . . 2 1 1 . 31 . . . . 2 . 3 . 5 1 . . 11 2 9 2 Actively Blocked 24 | . . . . . . . . . . . . . . 1 . 5 . . . 11 2 5 . Part Disruptions 2 | . . . . . . . 1 . . . . . . . . . . . . 1 . . . Damage Taken 27203 | . 287 970 481 251 713 735 4880 140 504 . 127 188 . 2037 . 1562 1419 1867 546 2668 1538 4692 1598 Core 3609 | . 47 87 40 14 88 135 528 19 78 . 19 . . 155 . 220 151 203 57 572 130 547 519 Absorbed by Shields 1246 | . . . . . . 88 . . . . . . . . . . . . . . 163 995 . Redirected to Shielding 8 | . . . . . . 8 . . . . . . . . . . . . . . . . . Ignored by Resistances 113 | . . . . . . . . . . . . . . . . . 113 . . . . . . Regen/Repaired (Parts) 8484 | . . . . . . 38 1230 339 56 155 . 60 . 416 52 293 603 581 . 695 1946 1349 671 Core Remaining (%) 60 | 100 . 46 92 . . 66 . . . . 35 . . . . . . 36 . 51 . . . Volleys Fired 895 | 12 30 90 59 16 26 25 150 13 1 4 . 11 4 76 . 37 53 38 . 93 55 101 1 Largest 4 | 2 2 2 3 3 4 4 2 1 1 1 . 1 1 2 . 1 2 2 . 3 2 2 1 Hottest 568 | 40 46 110 183 183 211 187 169 64 35 7 . 39 39 106 . 132 132 96 . 290 568 334 49 Shots Fired 1250 | 24 59 152 146 48 81 51 162 13 1 4 . 11 4 77 . 37 56 40 . 113 58 112 1 Gun 598 | 24 59 92 121 48 81 26 24 . . . . . . 56 . 28 3 4 . 26 . 6 . Cannon 623 | . . 60 25 . . 24 119 13 1 . . 11 4 21 . 9 53 36 . 84 58 105 . Launcher 20 | . . . . . . 1 14 . . . . . . . . . . . . 3 . 1 1 Special 9 | . . . . . . . 5 . . 4 . . . . . . . . . . . . . Kinetic 639 | 24 59 92 47 . 12 29 98 4 . . . 3 4 36 . 37 3 40 . 58 46 47 . Thermal 472 | . . 60 99 48 69 20 47 . . . . . . . . . 53 . . 48 12 16 . Explosive 1 | . . . . . . . . . . . . . . . . . . . . . . . 1 Electromagnetic 125 | . . . . . . 2 12 9 1 . . 8 . 41 . . . . . 4 . 48 . Entropic 4 | . . . . . . . . . . . . . . . . . . . . 3 . 1 . Robot Hit Streak 26 | 6 13 14 14 14 26 15 11 3 . 3 . 8 . 10 . 4 5 7 . 15 6 14 . Robot Miss Streak 7 | 2 4 3 3 2 3 4 7 3 1 . . 1 . 5 . 5 5 7 . 3 2 5 . Penetration Max 1 | . . . . . . . 1 . . . . . . 1 . 1 . . . . . . . Secondary Targets 3 | . 1 . 1 1 . . . . . . . . . . . . . . . . . . . Max Gunslinging Chain 1 | . 1 . 1 1 . . . . . . . . . . . . . . . . . . . Shots Hit Robots 761 | 14 43 83 100 33 63 39 91 6 . 3 . 8 . 49 . 18 29 23 . 58 33 68 . Core Hits 386 | 10 23 37 36 13 27 36 68 3 1 . . 5 . 31 . 7 14 9 . 32 8 26 . Critical Kills 19 | . . 1 2 . . . . . . . . . . . . . . . . . 10 6 . Critical Parts Destroyed 4 | 1 . 1 2 . . . . . . . . . . . . . . . . . . . . Critical Strikes 57 | 1 . 2 9 3 5 2 2 . . . . . . 1 . . 5 6 . 5 10 6 . Burn 15 | . . . 5 3 5 2 . . . . . . . . . . . . . . . . . Meltdown 18 | . . 1 1 . . . . . . . . . . . . . . . . . 10 6 . Destroy 5 | 1 . 1 3 . . . . . . . . . . . . . . . . . . . . Blast 5 | . . . . . . . 2 . . . . . . . . . . . . 3 . . . Corrupt 3 | . . . . . . . . . . . . . . 1 . . . . . 2 . . . Sunder 11 | . . . . . . . . . . . . . . . . . 5 6 . . . . . Melee Attacks . | . . . . . . . . . . . . . . . . . . . . . . . . Impact . | . . . . . . . . . . . . . . . . . . . . . . . . Slashing . | . . . . . . . . . . . . . . . . . . . . . . . . Piercing . | . . . . . . . . . . . . . . . . . . . . . . . . Sneak Attacks . | . . . . . . . . . . . . . . . . . . . . . . . . Combat Hostiles . | . . . . . . . . . . . . . . . . . . . . . . . . Follow-up Attacks . | . . . . . . . . . . . . . . . . . . . . . . . . Damage Inflicted 36109 | 150 633 1836 2074 581 1155 1202 6682 425 6 . . 344 . 3024 . 635 3270 1361 26 4459 1451 6765 30 Guns 8397 | 150 621 992 1728 581 1155 360 413 . . . . . . 1341 . 347 61 33 . 519 . 96 . Cannons 21878 | . . 844 346 . . 842 4342 425 . . . 344 . 368 . 288 3209 1321 . 2231 1421 5897 . Explosions 5365 | . . . . . . . 1886 . . . . . . 1256 . . . . . 1709 . 514 . Melee . | . . . . . . . . . . . . . . . . . . . . . . . . Ramming 469 | . 12 . . . . . 41 . 6 . . . . 59 . . . 7 26 . 30 258 30 Kinetic 14023 | 150 621 992 809 . 122 813 3206 149 . . . 58 . 873 . 635 61 1354 . 1236 1047 1897 . Thermal 12199 | . . 844 1265 581 1033 323 2630 . . . . . . 239 . . 3209 . . 1403 374 298 . Explosive 1017 | . . . . . . . . . . . . . . 1017 . . . . . . . . . Electromagnetic 6178 | . . . . . . 66 805 276 . . . 286 . 836 . . . . . 111 . 3798 . Impact . | . . . . . . . . . . . . . . . . . . . . . . . . Slashing . | . . . . . . . . . . . . . . . . . . . . . . . . Piercing . | . . . . . . . . . . . . . . . . . . . . . . . . Entropic 2223 | . . . . . . . . . . . . . . . . . . . . 1709 . 514 . Highest Corruption 29 | . 1 1 . 1 2 3 16 16 19 29 29 . 9 14 14 14 14 1 . 23 4 14 14 Average Corruption 4 | . 1 1 . 1 1 2 10 16 16 22 29 . 9 10 14 14 4 1 . 9 3 5 7 Corruption Purged . | . . . . . . . . . . . . . . . . . . . . . . . . Corruption Blocked . | . . . . . . . . . . . . . . . . . . . . . . . . Effects 309 | . 6 36 . 7 6 59 22 26 3 4 5 . 4 29 6 14 3 3 . 19 15 27 15 Message Errors 76 | . 2 9 . . 1 13 3 10 1 1 1 . 1 6 2 4 2 3 . 6 5 3 3 Matter Fused 80 | . 3 11 . 2 1 14 7 4 . 1 1 . . 8 2 3 . . . 5 2 10 6 Heat Flow Errors 32 | . . 2 . . 2 9 3 1 . . 1 . 1 2 . 1 . . . 2 2 2 4 Energy Discharges 37 | . . 4 . 4 . 7 2 8 1 . 1 . 1 2 1 . . . . . . 4 2 Parts Rejected 6 | . . . . . 1 . . . . . . . 1 1 . 1 . . . 1 . 1 . Parts Fused 6 | . . 2 . . . 1 . 1 . . . . . 1 . . . . . 1 . . . Data Loss (minor) 24 | . 1 3 . 1 . 4 . 2 . 1 . . . 3 . 1 1 . . 3 3 1 . Data Loss (major) 13 | . . 2 . . . 3 . . . 1 1 . . 1 . 1 . . . 1 1 2 . Misfires 5 | . . 2 . . . 1 2 . . . . . . . . . . . . . . . . Alerts 10 | . . . . . . 5 . . . . . . . . 1 2 . . . . . 2 . Misdirections 11 | . . . . . . . 4 . 1 . . . . 3 . 1 . . . . . 2 . Weapon Failures 9 | . . 1 . . 1 2 1 . . . . . . 2 . . . . . . 2 . . Overload Shots 2 | . . . . . . . . . . . . . . . . . . . . 2 . . . Overflow Damage 2442 | . . . 16 . . 9 301 . . . . . . 55 . 13 262 40 . 376 16 1354 . Projectiles 2224 | . . . 16 . . 9 243 . . . . . . . . 13 262 40 . 285 16 1340 . Explosions 168 | . . . . . . . 50 . . . . . . 21 . . . . . 91 . 6 . Melee 50 | . . . . . . . 8 . . . . . . 34 . . . . . . . 8 . Knockbacks 53 | . . . . . . 6 13 . . . . . . . . 2 . 6 . 9 8 9 . Impact 3 | . . . . . . . . . . . . . . . . . . . . . . 3 . Kinetic 48 | . . . . . . 6 12 . . . . . . . . 2 . 6 . 8 8 6 . Secondary 2 | . . . . . . . 1 . . . . . . . . . . . . 1 . . . Self-Inflicted Damage 215 | . . . . . . 21 26 . . . . . . . . . . . . . . 154 14 Shots 3 | . . . . . . 1 1 . . . . . . . . . . . . . . 1 . Rammed 5 | . 1 . . . . . 2 . . . . . . . . . . . . . . . 2 Targets Rammed 33 | . 1 . . . . . 2 . 1 . . . . 1 . . . 1 3 . 1 21 2 Kicked 28 | . . . . . . . . . 1 . . . . 1 . . . 1 3 . 1 21 . Crushed . | . . . . . . . . . . . . . . . . . . . . . . . . Highest Temperature 693 | . 6 122 302 142 296 237 336 234 . . 232 . 74 218 . 229 296 . . 693 631 550 235 Average Temperature 121 | . 2 17 73 53 87 74 122 104 . . 132 . 46 71 . 103 77 . . 227 198 179 104 Received Heat Transfer 3268 | . 144 246 261 99 264 132 959 . 72 . 30 75 . 262 . 9 234 81 108 33 9 97 153 Effects 25 | . . . . . 2 . 2 . . . . . . . . . . . . 14 5 2 . Shutdowns 5 | . . . . . . . . . . . . . . . . . . . . 4 . 1 . Energy Bleed 3 | . . . . . . . 1 . . . . . . . . . . . . 1 1 . . Interference 6 | . . . . . 2 . . . . . . . . . . . . . . 2 2 . . Matter Decay 1 | . . . . . . . 1 . . . . . . . . . . . . . . . . Short Circuit 2 | . . . . . . . . . . . . . . . . . . . . 2 . . . Damage (minor) 3 | . . . . . . . . . . . . . . . . . . . . 1 1 1 . Damage (major) 3 | . . . . . . . . . . . . . . . . . . . . 2 1 . . Damage (core) 2 | . . . . . . . . . . . . . . . . . . . . 2 . . . Siege Activations . | . . . . . . . . . . . . . . . . . . . . . . . . Martial Activations . | . . . . . . . . . . . . . . . . . . . . . . . . Shielding Activations . | . . . . . . . . . . . . . . . . . . . . . . . . Robots Disrupted 1 | . . . . . . . . . . . . . . 1 . . . . . . . . . Combat Hostiles 1 | . . . . . . . . . . . . . . 1 . . . . . . . . . Robots Corrupted 13 | . . . . . . . 1 1 . . . 1 . 4 . . . . . 1 . 5 . Combat Hostiles 11 | . . . . . . . 1 1 . . . 1 . 3 . . . . . . . 5 . Parts Fried 43 | . . . . . . . 7 4 . . . 1 . 4 . . . . . 2 2 23 . Impact Corruptions 3 | . . . . . . . 1 . . . . . . 1 . . . . . . . 1 . Robots Melted 18 | . . 1 1 . . . . . . . . . . . . . . . . . 10 6 . Combat Hostiles 17 | . . 1 1 . . . . . . . . . . . . . . . . . 10 5 . Parts Melted 55 | . . 3 9 4 11 1 1 . . . . . . 1 . . 4 . . . 13 8 . Heat Transferred 11672 | . . 1147 2849 1443 2553 703 1415 . . . . . . 150 . . 996 . . 416 . . . Parts Sabotaged . | . . . . . . . . . . . . . . . . . . . . . . . . Parts Stolen . | . . . . . . . . . . . . . . . . . . . . . . . . Parts Stripped . | . . . . . . . . . . . . . . . . . . . . . . . . Power Chain Reactions 1 | . . . . . . . . . . . . . . 1 . . . . . . . . . Alert | -11 -10 -10 -8 -7 -7 -7 -5 -5 -5 -5 -4 -4 -4 -4 -4 -4 -4 -3 -3 -3 -2 -2 -2 ------- Run | Yrd Mat Sub Mat Fac Sto Rec Fac Upp Upp Zhi Pro Fac Was Fac Upp Upp War Pro Res Tes Res Qua Sec Maximum Alert Level 3 | . . . 1 1 . . 3 . . . . 2 . 2 . . . . 2 2 1 2 . Low Security (%) 67 | 100 100 . 83 99 100 100 . . . . . 29 100 38 . . . . . 8 84 7 100 Level 1 21 | . . . 16 . . . 41 . . . . 26 . 17 . . . . . 84 15 89 . Level 2 9 | . . . . . . . 45 . . . . 43 . 44 . . . . 100 6 . 3 . Level 3 1 | . . . . . . . 12 . . . . . . . . . . . . . . . . Level 4 . | . . . . . . . . . . . . . . . . . . . . . . . . Level 5 . | . . . . . . . . . . . . . . . . . . . . . . . . High Security . | . . . . . . . . . . . . . . . . . . . . . . . . Max Security . | . . . . . . . . . . . . . . . . . . . . . . . . Sterilizations 1 | . . . . 1 . . . . . . . . . . . . . . . . . . . Peak Influence 875 | 10 60 . 232 200 117 97 875 . . . . 416 147 604 . . . . 600 415 229 414 183 Initial 600 | . . . 9 88 43 37 252 . . . . 159 138 77 . . . . 600 297 229 105 183 Average 154 | 2 16 . 80 66 40 14 468 . . . . 320 129 313 . . . . 569 315 88 289 124 Influence Increases 8319 | 30 237 250 495 332 252 434 1579 80 60 . 15 447 23 853 . 95 269 115 600 730 444 928 51 Destroy 0b10 Robot/C 3340 | . 140 140 300 80 160 140 580 60 . . . 60 . 260 . 60 180 100 . 300 260 520 . Destroy 0b10 Robot/NC 330 | 30 30 . 40 15 25 20 65 . . . . . . 20 . . 25 5 . 35 . 20 . Destroy Leader 592 | . 22 20 68 30 52 . 118 20 . . . 20 . 62 . 20 . 10 . 24 60 66 . Allied During Kill 19 | . . . . . . . . . . . . . . . . . 19 . . . . . . Successful Hack 259 | . 30 . 11 7 . 91 14 . . . . . . 35 . . . . . 48 16 7 . Select Force Hacks 150 | . . . . . . 150 . . . . . . . . . . . . . . . . . Disable Machine 735 | . . . 45 . 15 . 150 . . . . . . 195 . . . . . 165 30 120 15 Anti-Garrison Action 400 | . . . . 200 . . . . . . . 200 . . . . . . . . . . . Destroy Structure 774 | . . . 16 . . 33 252 . . . . 2 8 116 . . . . . 158 33 135 21 Advance Influence 1000 | . . . . . . . 250 . . . . 150 . . . . . . 600 . . . . Partial Spotted 105 | . 15 . . . . . 15 . . . . . 15 15 . . . . . . . 30 15 Lose Combat Pursuer 615 | . . 90 15 . . . 135 . 60 . 15 15 . 150 . 15 45 . . . 45 30 . Influence Decreases 8319 | 30 227 242 318 430 252 526 713 641 99 271 . 66 308 378 287 197 376 205 70 851 665 789 378 Entered New Map 2391 | . . 6 9 107 54 60 3 323 59 271 . 6 258 34 217 57 197 90 . 233 180 83 144 Time Decay 4855 | 30 227 236 299 323 180 390 550 318 40 . . 50 50 294 70 120 100 69 50 398 465 416 180 Lost Part 688 | . . . 10 . 18 70 160 . . . . 10 . 40 . 20 10 46 20 70 20 140 54 Lost Ally 85 | . . . . . . 6 . . . . . . . 10 . . 69 . . . . . . Purge Threat 300 | . . . . . . . . . . . . . . . . . . . . 150 . 150 . Squads Dispatched 31 | . . . 1 4 2 . 8 . . . . 2 . 5 . . . . . 4 . 4 1 Investigation 6 | . . . . 2 . . . . . . . 1 . 2 . . . . . . . . 1 Extermination 14 | . . . . 2 1 . 3 . . . . . . 2 . . . . . 2 . 4 . Reinforcement 9 | . . . 1 . 1 . 4 . . . . 1 . 1 . . . . . 1 . . . Assault 2 | . . . . . . . 1 . . . . . . . . . . . . 1 . . . Garrison . | . . . . . . . . . . . . . . . . . . . . . . . . Intercept . | . . . . . . . . . . . . . . . . . . . . . . . . Searches Triggered . | . . . . . . . . . . . . . . . . . . . . . . . . Unchained Authorized 1 | . . . . . . . 1 . . . . . . . . . . . . . . . . Construction Impeded 3 | . . . . . . . 3 . . . . . . . . . . . . . . . . Haulers Reinforced 1 | . . . . . . . . . . . . 1 . . . . . . . . . . . Active Scanning Responses . | . . . . . . . . . . . . . . . . . . . . . . . . Cargo Convoy Interrupts . | . . . . . . . . . . . . . . . . . . . . . . . . Stealth | -11 -10 -10 -8 -7 -7 -7 -5 -5 -5 -5 -4 -4 -4 -4 -4 -4 -4 -3 -3 -3 -2 -2 -2 --------- Run | Yrd Mat Sub Mat Fac Sto Rec Fac Upp Upp Zhi Pro Fac Was Fac Upp Upp War Pro Res Tes Res Qua Sec Distress Signals 27 | . 1 . 1 . . 1 2 . . . 1 . . 3 . . 2 10 1 1 3 . 1 Communications Jammed . | . . . . . . . . . . . . . . . . . . . . . . . . Distress Signals . | . . . . . . . . . . . . . . . . . . . . . . . . Times Spotted 390 | . 11 20 22 7 9 8 53 3 7 . 9 9 5 34 . 7 59 14 9 22 31 40 11 Peak Tracking Total 12 | . 3 2 5 2 2 4 7 2 7 . 9 5 5 7 . 3 12 4 7 6 5 5 5 Tactical Retreats 30 | . . 4 1 . . . 4 . 2 . 1 1 . 5 . 1 3 . . . 3 3 2 ECM-based Alert Blocks 4 | . . . . . . . . . . . . . . . . . . . . . . 1 3 Traps | -11 -10 -10 -8 -7 -7 -7 -5 -5 -5 -5 -4 -4 -4 -4 -4 -4 -4 -3 -3 -3 -2 -2 -2 ------- Run | Yrd Mat Sub Mat Fac Sto Rec Fac Upp Upp Zhi Pro Fac Was Fac Upp Upp War Pro Res Tes Res Qua Sec Traps Triggered 12 | . 2 2 . 1 . . . . . . . 3 . 1 . . 1 . 1 . . 1 . Indirectly . | . . . . . . . . . . . . . . . . . . . . . . . . Trap Hack Attempts . | . . . . . . . . . . . . . . . . . . . . . . . . Triggered . | . . . . . . . . . . . . . . . . . . . . . . . . Disarmed . | . . . . . . . . . . . . . . . . . . . . . . . . Reprogrammed . | . . . . . . . . . . . . . . . . . . . . . . . . Reused . | . . . . . . . . . . . . . . . . . . . . . . . . Traps Extracted . | . . . . . . . . . . . . . . . . . . . . . . . . Installed . | . . . . . . . . . . . . . . . . . . . . . . . . Triggered . | . . . . . . . . . . . . . . . . . . . . . . . . Machines | -11 -10 -10 -8 -7 -7 -7 -5 -5 -5 -5 -4 -4 -4 -4 -4 -4 -4 -3 -3 -3 -2 -2 -2 ---------- Run | Yrd Mat Sub Mat Fac Sto Rec Fac Upp Upp Zhi Pro Fac Was Fac Upp Upp War Pro Res Tes Res Qua Sec Machines Disabled 56 | . . 2 3 . 1 . 10 . . . . . . 13 . . 2 . . 13 2 9 1 Max in Single Turn 4 | . . 1 1 . 1 . 4 . . . . . . 3 . . 1 . . 2 1 1 1 Garrison Access 5 | . . . 1 2 . . . . . . . 1 . . . . . . . . 1 . . Machines Repaired . | . . . . . . . . . . . . . . . . . . . . . . . . Machines Dismantled . | . . . . . . . . . . . . . . . . . . . . . . . . Machines Sabotaged . | . . . . . . . . . . . . . . . . . . . . . . . . Overloaded Fab Kills . | . . . . . . . . . . . . . . . . . . . . . . . . Hacking | -11 -10 -10 -8 -7 -7 -7 -5 -5 -5 -5 -4 -4 -4 -4 -4 -4 -4 -3 -3 -3 -2 -2 -2 --------- Run | Yrd Mat Sub Mat Fac Sto Rec Fac Upp Upp Zhi Pro Fac Was Fac Upp Upp War Pro Res Tes Res Qua Sec Machines Accessed 82 | . 7 4 7 6 . 12 6 1 . 4 . 1 . 12 . . 5 . . 7 1 8 1 Terminals 44 | . 6 . 5 3 . 6 2 . . . . . . 8 . . . . . 6 1 7 . Fabricators 3 | . . . . . . . 1 . . . . . . 1 . . . . . 1 . . . Repair Stations 1 | . . . . . . . . . . . . . . . . . . . . . . . 1 Recycling Units 12 | . 1 . . 1 . 5 2 . . . . . . 3 . . . . . . . . . Scanalyzers 2 | . . . 1 . . . 1 . . . . . . . . . . . . . . . . Garrison Access 5 | . . . 1 2 . . . . . . . 1 . . . . . . . . . 1 . Total Hacks 194 | . 27 7 12 8 . 28 10 1 . 17 . 2 . 19 . . 16 . . 24 7 14 2 Successful 112 | . 15 7 5 4 . 17 4 1 . 17 . 1 . 8 . . 16 . . 13 2 2 . Failed 80 | . 12 . 6 4 . 11 5 . . . . 1 . 11 . . . . . 11 5 12 2 Catastrophic 17 | . 1 . . 1 . 2 3 . . . . . . 3 . . . . . 1 . 5 1 Database Lockouts 2 | . . . 1 . . . 1 . . . . . . . . . . . . . . . . Manual 77 | . 25 . 7 4 1 12 5 . . . . 2 . 6 . . . . . 12 . 3 . Terminals 110 | . 25 . 9 4 . 13 5 . . . . . . 13 . . . . . 22 7 12 . Fabricators 5 | . . . . . . . 1 . . . . . . 2 . . . . . 2 . . . Repair Stations 2 | . . . . . . . . . . . . . . . . . . . . . . . 2 Recycling Units 23 | . 2 . . 2 . 13 2 . . . . . . 4 . . . . . . . . . Scanalyzers 4 | . . . 2 . . . 2 . . . . . . . . . . . . . . . . Garrison Access 7 | . . . 1 2 . . . . . . . 2 . . . . . . . . . 2 . Terminal Hacks 72 | . 5 7 2 1 . 6 2 1 . 17 . . . 3 . . 16 . . 8 2 2 . Record 19 | . . 4 . . . . . . . 5 . . . . . . 10 . . . . . . Part Schematic 5 | . . . . . . 1 . . . 4 . . . . . . . . . . . . . Robot Analysis 5 | . . . . . . . . . . 4 . . . . . . . . . 1 . . . Prototype ID Bank 9 | . . . . . . . . . . 4 . . . . . . 5 . . . . . . Open Door 4 | . . 1 . . . . . 1 . . . . . . . . 1 . . . . 1 . Level Access Points 1 | . . . . . . . . . . . . . . . . . . . . 1 . . . Branch Access Points 8 | . 1 . 1 1 . 1 1 . . . . . . 1 . . . . . 1 1 . . Emergency Access Points 1 | . . . . . . . . . . . . . . 1 . . . . . . . . . Unreport Threat 2 | . . . . . . . . . . . . . . . . . . . . 1 . 1 . Locate Traps 1 | . 1 . . . . . . . . . . . . . . . . . . . . . . Patrol Status 1 | . . . . . . . . . . . . . . . . . . . . 1 . . . Registered Components 3 | . . . 1 . . 1 . . . . . . . . . . . . . . 1 . . Registered Prototypes 1 | . . . . . . . . . . . . . . . . . . . . 1 . . . Zone Layout 7 | . 3 . . . . 1 1 . . . . . . 1 . . . . . 1 . . . Proto ID Catalog 1 | . . 1 . . . . . . . . . . . . . . . . . . . . . Protovariant Controls 1 | . . . . . . . . . . . . . . . . . . . . 1 . . . Release Object 3 | . . 1 . . . 2 . . . . . . . . . . . . . . . . . Fabricator Hacks 4 | . . . . . . . 1 . . . . . . 2 . . . . . 1 . . . Network Status 1 | . . . . . . . . . . . . . . 1 . . . . . . . . . Load Schematic 1 | . . . . . . . 1 . . . . . . . . . . . . . . . . Build 2 | . . . . . . . . . . . . . . 1 . . . . . 1 . . . Repair Station Hacks . | . . . . . . . . . . . . . . . . . . . . . . . . Recycling Unit Hacks 9 | . 2 . . 1 . 4 . . . . . . . 2 . . . . . . . . . Retrieve Components 9 | . 2 . . 1 . 4 . . . . . . . 2 . . . . . . . . . Scanalyzer 2 | . . . 1 . . . 1 . . . . . . . . . . . . . . . . Retrieve Study 2 | . . . 1 . . . 1 . . . . . . . . . . . . . . . . Garrison Access Hacks 2 | . . . 1 1 . . . . . . . . . . . . . . . . . . . Seal Access 2 | . . . 1 1 . . . . . . . . . . . . . . . . . . . Unauthorized Hacks 23 | . 8 . 1 1 . 7 . . . . . 1 . 1 . . . . . 4 . . . Terminals 16 | . 8 . 1 . . 2 . . . . . . . 1 . . . . . 4 . . . Assimilate 2 | . . . . . . 1 . . . . . . . 1 . . . . . . . . . Botnet 2 | . 2 . . . . . . . . . . . . . . . . . . . . . . Operators 1 | . 1 . . . . . . . . . . . . . . . . . . . . . . Skim 11 | . 5 . 1 . . 1 . . . . . . . . . . . . . 4 . . . Fabricators . | . . . . . . . . . . . . . . . . . . . . . . . . Repair Stations . | . . . . . . . . . . . . . . . . . . . . . . . . Recycling Units 5 | . . . . . . 5 . . . . . . . . . . . . . . . . . Tunnel 5 | . . . . . . 5 . . . . . . . . . . . . . . . . . Scanalyzers . | . . . . . . . . . . . . . . . . . . . . . . . . Garrison Access 2 | . . . . 1 . . . . . . . 1 . . . . . . . . . . . Jam 2 | . . . . 1 . . . . . . . 1 . . . . . . . . . . . Data Cores Recovered 1 | . . . . . . . . . . . . . . . . . . . . 1 . . . Used 1 | . . . . . . . . . . . . . . . . . . . . 1 . . . Hacking Detections 43 | . 6 . 2 2 . 7 4 . . . . 1 . 5 . . . . . 7 1 7 1 Full Trace Events 3 | . . . . . . . . . . . . . . 2 . . . . . . . . 1 Feedback Events . | . . . . . . . . . . . . . . . . . . . . . . . . Feedback Blocked . | . . . . . . . . . . . . . . . . . . . . . . . . Robot Schematics Acquired . | . . . . . . . . . . . . . . . . . . . . . . . . Robots Built . | . . . . . . . . . . . . . . . . . . . . . . . . Authchips . | . . . . . . . . . . . . . . . . . . . . . . . . Time . | . . . . . . . . . . . . . . . . . . . . . . . . Total Robot Build Rating . | . . . . . . . . . . . . . . . . . . . . . . . . Part Schematics Acquired 5 | . . . . . . 1 . . . 4 . . . . . . . . . . . . . Parts Built 4 | . . . . . . . . . . . . . . 2 . . . . . 2 . . . Authchips . | . . . . . . . . . . . . . . . . . . . . . . . . Time 163 | . . . . . . . . . . . . . . 117 . . . . . 46 . . . Total Part Build Rating 32 | . . . . . . . . . . . . . . 14 . . . . . 18 . . . Part Studies Acquired 2 | . . . 1 . . . 1 . . . . . . . . . . . . . . . . Parts Repaired . | . . . . . . . . . . . . . . . . . . . . . . . . Time . | . . . . . . . . . . . . . . . . . . . . . . . . Parts Recycled . | . . . . . . . . . . . . . . . . . . . . . . . . Recycled Matter . | . . . . . . . . . . . . . . . . . . . . . . . . Retrieved Matter . | . . . . . . . . . . . . . . . . . . . . . . . . Retrieved Components 14 | . . . . 1 . 9 . . . . . . . 4 . . . . . . . . . Parts Scanalyzed . | . . . . . . . . . . . . . . . . . . . . . . . . Part Schematics Acquired . | . . . . . . . . . . . . . . . . . . . . . . . . Parts Damaged . | . . . . . . . . . . . . . . . . . . . . . . . . Bothacking | -11 -10 -10 -8 -7 -7 -7 -5 -5 -5 -5 -4 -4 -4 -4 -4 -4 -4 -3 -3 -3 -2 -2 -2 ------------ Run | Yrd Mat Sub Mat Fac Sto Rec Fac Upp Upp Zhi Pro Fac Was Fac Upp Upp War Pro Res Tes Res Qua Sec Used RIF Installer . | . . . . . . . . . . . . . . . . . . . . . . . . Robots Hacked 7 | . . . . . . . 4 . . 3 . . . . . . . . . . . . . Non-combat 1 | . . . . . . . 1 . . . . . . . . . . . . . . . . Combat 6 | . . . . . . . 3 . . 3 . . . . . . . . . . . . . Robot Hacks Applied 7 | . . . . . . . 4 . . 3 . . . . . . . . . . . . . parse_system 7 | . . . . . . . 4 . . 3 . . . . . . . . . . . . . Relay Couplers Released 8 | . . . . 1 . . . . . . . . . . . . . . . . 3 4 . Machine Destruction 4 | . . . . 1 . . . . . . . . . . . . . . . . 3 . . Programmers 4 | . . . . . . . . . . . . . . . . . . . . . . 4 . Fabnet Peak Effective % . | . . . . . . . . . . . . . . . . . . . . . . . . Robots Rewired 8 | . . . . . . 3 . . . . . . . . . . 5 . . . . . . Allies Hacked . | . . . . . . . . . . . . . . . . . . . . . . . . Hacks Repelled . | . . . . . . . . . . . . . . . . . . . . . . . . Allies | -11 -10 -10 -8 -7 -7 -7 -5 -5 -5 -5 -4 -4 -4 -4 -4 -4 -4 -3 -3 -3 -2 -2 -2 -------- Run | Yrd Mat Sub Mat Fac Sto Rec Fac Upp Upp Zhi Pro Fac Was Fac Upp Upp War Pro Res Tes Res Qua Sec Total Allies 9 | . . . . . . 3 . . . . . . . 1 . . 5 . . . . . . Largest Group 5 | . . . . . . 3 . . . . . . . 1 . . 5 . . . . . . Highest-Rated Group 282 | . . . . . . 87 . . . . . . . 45 . . 282 . . . . . . Highest-Rated Ally 68 | . . . . . . 37 . . . . . . . 45 . . 68 . . . . . . Total Orders . | . . . . . . . . . . . . . . . . . . . . . . . . Ally Attacks 30 | . . . . . . 6 . . . . . . . . . . 24 . . . . . . Total Damage 870 | . . . . . . 82 . . . . . . . . . . 788 . . . . . . Kills . | . . . . . . . . . . . . . . . . . . . . . . . . Allies Corrupted . | . . . . . . . . . . . . . . . . . . . . . . . . Allies Melted 1 | . . . . . . . . . . . . . . . . . . . . . 1 . . Intel | -11 -10 -10 -8 -7 -7 -7 -5 -5 -5 -5 -4 -4 -4 -4 -4 -4 -4 -3 -3 -3 -2 -2 -2 ------- Run | Yrd Mat Sub Mat Fac Sto Rec Fac Upp Upp Zhi Pro Fac Was Fac Upp Upp War Pro Res Tes Res Qua Sec Active Infowar (turns) 2829 | 13 910 7 . . . . . . . . . . . 235 146 229 . . . 308 583 321 77 Sensors 294 | . . . . . . . . . . . . . . 235 . . . . . 59 . . . Seismic 930 | 13 910 7 . . . . . . . . . . . . . . . . . . . . . Cloaking 583 | . . . . . . . . . . . . . . . . . . . . . 583 . . Jamming 375 | . . . . . . . . . . . . . . . 146 229 . . . . . . . ECM 647 | . . . . . . . . . . . . . . . . . . . . 249 . 321 77 Robot Analysis Total 5 | . . . . . . . . . . 4 . . . . . . . . . 1 . . . Derelict Logs Recovered 7 | . . 2 . . . . . 2 1 . 1 . . . 1 . . . . . . . . Drone Launches . | . . . . . . . . . . . . . . . . . . . . . . . . Drone Recoveries . | . . . . . . . . . . . . . . . . . . . . . . . . Exploration | -11 -10 -10 -8 -7 -7 -7 -5 -5 -5 -5 -4 -4 -4 -4 -4 -4 -4 -3 -3 -3 -2 -2 -2 ------------- Run | Yrd Mat Sub Mat Fac Sto Rec Fac Upp Upp Zhi Pro Fac Was Fac Upp Upp War Pro Res Tes Res Qua Sec Turns Passed 20894 | 122 910 4114 985 1537 396 3262 1595 713 84 75 109 117 109 649 147 247 1149 613 118 959 1504 1018 362 Spaces Moved 13065 | 51 438 2612 376 508 185 1294 1062 311 211 145 255 137 193 822 167 240 1031 246 104 561 891 839 386 Core 17 | 9 . 1 . . . 2 . . . . . . . . . . 1 . . . . . 4 Treads 1029 | 42 438 308 . . . 116 . . . . . . . 125 . . . . . . . . . Legs 2378 | . . . . . . . . 292 211 35 . . . 417 . . . 246 104 310 425 219 119 Wheels 4320 | . . 2303 376 508 185 878 70 . . . . . . . . . . . . . . . . Hover 3351 | . . . . . . 206 521 19 . 110 255 137 193 267 . . 554 . . 185 166 475 263 Flight 1970 | . . . . . . 92 471 . . . . . . 13 167 240 476 . . 66 300 145 . Fastest Speed 36 | 50 160 107 162 150 150 127 38 38 38 38 38 43 43 43 50 50 51 76 102 91 36 36 50 Average Speed 109 | 140 160 136 178 174 150 188 76 38 38 38 41 43 43 47 50 69 74 92 102 114 116 82 73 Slowest Speed 1600 | 160 160 550 220 235 181 1600 200 38 38 38 43 43 43 72 50 100 800 102 102 174 220 158 360 Overloaded Moves . | . . . . . . . . . . . . . . . . . . . . . . . . Propulsion Burnouts . | . . . . . . . . . . . . . . . . . . . . . . . . Robots Hopped 9 | . . . . . . . 2 . . . . . . . . . 7 . . . . . . Potential Cave-ins 5 | . . . . . . . . . . . . . . . . . 3 . . . 2 . . Cave-ins Triggered . | . . . . . . . . . . . . . . . . . . . . . . . . Teleports 4 | . . . . . . . . . . . . . . . . . . . . . 1 2 1 Exploration Rate (%) 47 | 3 70 97 36 8 40 98 20 40 48 60 55 5 99 29 38 54 88 47 5 63 41 84 19 Regions Visited 23 Branch Regions 14 Pre-discovered Areas 13 | . . 3 . . . 5 . . . 3 . . . . 1 . 1 . . . . . . Known Exits Taken 9 | . 1 . 1 1 . . 1 1 . . . . . 1 . . . . 1 1 1 . . Unknown Exits Taken 12 | 1 . 1 . . 1 1 . . 1 1 1 . . . 1 1 1 1 . . . 1 . Scrap Searched 13 | . . 8 . . . . . . 1 . 1 . . . 2 . . 1 . . . . . Spaces Dug 86 | . . 1 . . . 26 9 . . . . . 6 2 . . 1 . . 12 11 3 15 Terrain Destroyed 518 | . . 12 12 . . 27 137 6 . . . 1 8 69 . 29 16 16 . 79 23 68 15 Melee . | . . . . . . . . . . . . . . . . . . . . . . . . Projectile 251 | . . 12 12 . . 2 44 6 . . . 1 8 12 . 29 16 16 . 44 23 26 . AOE 267 | . . . . . . 25 93 . . . . . . 57 . . . . . 35 . 42 15 Terrain Rammed . | . . . . . . . . . . . . . . . . . . . . . . . . Walls Destroyed . | . . . . . . . . . . . . . . . . . . . . . . . . Machines Disabled . | . . . . . . . . . . . . . . . . . . . . . . . . Actions | -11 -10 -10 -8 -7 -7 -7 -5 -5 -5 -5 -4 -4 -4 -4 -4 -4 -4 -3 -3 -3 -2 -2 -2 --------- Run | Yrd Mat Sub Mat Fac Sto Rec Fac Upp Upp Zhi Pro Fac Was Fac Upp Upp War Pro Res Tes Res Qua Sec Total 18658 | 79 589 3015 565 1122 246 2092 1712 900 213 163 257 184 214 1021 231 297 1373 608 115 784 1313 1097 468 Wait 3880 | . 98 217 84 560 21 681 401 559 1 7 3 25 16 56 55 19 203 317 2 64 346 88 57 Move 13028 | 50 437 2611 375 507 184 1293 1057 310 210 144 254 137 192 821 166 239 1019 245 103 560 890 838 386 Hop 6 | . . . . . . . 2 . . . . . . . . . 4 . . . . . . Pick Up 252 | 10 12 21 21 17 8 19 25 4 . 3 . 5 1 23 2 1 18 . 4 21 6 22 9 Fast Attach 40 | 1 . 8 . 2 1 5 4 . . 1 . 2 . 4 . . 9 . . 3 . . . Attach 134 | 6 3 6 10 3 3 8 22 3 . 2 . 4 1 10 2 1 2 3 3 15 10 11 6 Detach 30 | . . 1 1 1 1 2 11 1 . . . . . 6 . . . . . 4 1 . 1 Swap 50 | . 3 9 4 5 . 4 7 1 . 1 . . . 1 1 . 5 . . 5 1 3 . Drop 216 | . 5 32 9 7 2 33 30 9 . 1 . . . 19 5 . 22 4 . 16 3 13 6 Fire 895 | 12 30 90 59 16 26 25 150 13 1 4 . 11 4 76 . 37 53 38 . 93 55 101 1 Melee . | . . . . . . . . . . . . . . . . . . . . . . . . Ram 4 | . . . . . . . 2 . . . . . . . . . . . . . . . 2 Kick 28 | . . . . . . . . . 1 . . . . 1 . . . 1 3 . 1 21 . Crush 1 | . 1 . . . . . . . . . . . . . . . . . . . . . . Escape Stasis 3 | . . . . . . . . . . . . . . . . . . . . 3 . . . Rewire 60 | . . . . . . 22 . . . . . . . . . . 38 . . . . . . Trap . | . . . . . . . . . . . . . . . . . . . . . . . . Miscellaneous 31 | . . 20 2 4 . . 1 . . . . . . 4 . . . . . . . . . Route ------- -11/Scrapyard -10/Materials (discovered 5 exits: *Mat x3 / *Min / *Sub) -10/Subcaves (discovered 3 exits: *Mat x2 / *Rec) -8/Materials -7/Factory (discovered 4 exits: *Sto x2 / Low x2) -7/Storage (discovered 2 exits: Fac / *Rec) -7/Recycling -5/Factory (discovered 5 exits: *Fac / *Upp x2 / Ext x2) -5/Upper Caves -5/Upper Caves (discovered 2 exits: *Fac / *Zhi) -5/Zhirov -4/Proximity Caves -4/Factory -4/Waste -4/Factory (discovered 3 exits: *Upp x2 / Arm) -4/Upper Caves -4/Upper Caves -4/Warlord -3/Proximity Caves -3/Research (discovered 2 exits: Res / *Tes) -3/Testing -2/Research (discovered 3 exits: [*Acc] / *Qua x2) -2/Quarantine (discovered 3 exits: [*Acc] / *Sec / [*Frg]) -2/Section 7 History --------- Turn | Location | Event 6 | -11/Scrapyard | Discovered new exit (range 14) 123 | -11/Scrapyard | Entered Materials 212 | -10/Materials | Identified exit to Mines 314 | -10/Materials | Build established: Mutant 389 | -10/Materials | Discovered new exit (range 4) 649 | -10/Materials | Discovered new exit (range 6) 701 | -10/Materials | Identified exit to Materials 731 | -10/Materials | Identified exit to Subcaves 731 | -10/Materials | Learned location of 1 exit from Materials 751 | -10/Materials | Learned location of 2 exits from Mines 764 | -10/Materials | Learned Storage emergency access door positions 766 | -10/Materials | Learned location of 1 exit from Storage 796 | -10/Materials | Learned 8 Materials zone layouts 1033 | -10/Materials | Entered Subcaves 1169 | -10/Subcaves | Learned location of Zion (-6) 1169 | -10/Subcaves | Met a Zionite searching for "candidates" 1400 | -10/Subcaves | Discovered new exit (range 4) 1430 | -10/Subcaves | Discovered new exit (range 12) 1869 | -10/Subcaves | Curiously followed by a Cobbler waking with a query about "LVR3C" 1920 | -10/Subcaves | Build established: Subdweller-Mutant 2231 | -10/Subcaves | Learned location of Mines (-10) 2257 | -10/Subcaves | Visited 4L-MR0's lab 2793 | -10/Subcaves | Visited Clippyterm 2800 | -10/Subcaves | Learned location of Extension (-5) 3064 | -10/Subcaves | A swath of the cavern ceiling suddenly collapsed 3155 | -10/Subcaves | Shifting Twisted Machinery released Sub. Shrapnel Launcher 3169 | -10/Subcaves | Shifting Twisted Machinery released Barrage Gun 3325 | -10/Subcaves | A swath of the cavern ceiling suddenly collapsed 4104 | -10/Subcaves | Discovered new exit (range 12) 4695 | -10/Subcaves | Core integrity fell below 50% 4771 | -10/Subcaves | Found Prototype Special Melee Weapon 4776 | -10/Subcaves | Found Flightbrick 4896 | -10/Subcaves | Learned Materials garrison access intel 4900 | -10/Subcaves | Found SUBCON Basin 5073 | -10/Subcaves | Build established: Hauler-Mutant 5147 | -10/Subcaves | Entered Materials 5147 | -8/Materials | Evolved 4 slots: Propulsion x2, Utility x1, Weapon x1 5148 | -8/Materials | Identified exit to Factory 5150 | -8/Materials | Loaded intel: 1 garrison access location 5300 | -8/Materials | Central database locked down 6009 | -8/Materials | Build established: Hauler-Gunner 6132 | -8/Materials | Entered Factory 6132 | -7/Factory | Evolved 2 slots: Utility x1, Weapon x1 6132 | -7/Factory | Discovered new exit (range 12) 6246 | -7/Factory | Released subatomizers from SUBCON Basin 6418 | -7/Factory | Identified exit to Storage 6418 | -7/Factory | Identified exit to Lower Caves 6477 | -7/Factory | Build established: Hauler-Tank 7603 | -7/Factory | Sterilization system engaged 7603 | -7/Factory | Non-combat units ordered to evacuate 7669 | -7/Factory | Entered Storage 7670 | -7/Storage | Identified exit to Factory 8059 | -7/Storage | Used back door to open Recycling access 8059 | -7/Storage | Discovered new exit (range 5) 8065 | -7/Storage | Entered Recycling 8127 | -7/Recycling | Lost 7 parts (1p3n2u1w) 8606 | -7/Recycling | Build established: Tank 8901 | -7/Recycling | Discovered new exit (range 16) 8973 | -7/Recycling | Found Prototype Device 8973 | -7/Recycling | Identified Scrap Engine 9078 | -7/Recycling | Entered Scraplab 9482 | -7/Recycling | Build established: Construct 11327 | -7/Recycling | Entered Factory 11327 | -5/Factory | Evolved 4 slots: Power x1, Propulsion x1, Utility x2 11583 | -5/Factory | Discovered new exit (range 11) 11667 | -5/Factory | Discovered new exit (range 16) 11820 | -5/Factory | Found Prototype Launcher 11821 | -5/Factory | Identified Rocket Array 11830 | -5/Factory | Central database locked down 11868 | -5/Factory | Identified exit to Upper Caves 11890 | -5/Factory | Unchained authorized (QV-33N) 12527 | -5/Factory | First assault squad dispatched 12534 | -5/Factory | Lost 6 parts (2n1u3w) 12643 | -5/Factory | System corruption reached 10% 12787 | -5/Factory | Identified exit to Extension 12875 | -5/Factory | Core integrity fell below 50% 12899 | -5/Factory | Lost 3 parts (1p1u1w) 12922 | -5/Factory | Entered Upper Caves 13614 | -5/Upper Caves | Identified exit to Upper Caves 13625 | -5/Upper Caves | Learned Factory emergency access door positions 13635 | -5/Upper Caves | Entered another Upper Caves area 13639 | -5/Upper Caves | Discovered new exit (range 15) 13645 | -5/Upper Caves | Learned Factory stockpile data 13666 | -5/Upper Caves | Attracted the attention of an 0b10 checkpoint 13714 | -5/Upper Caves | Discovered new exit (range 15) 13719 | -5/Upper Caves | Entered Zhirov 13719 | -5/Zhirov | Discovered new exit (range 3) 13726 | -5/Zhirov | Met Zhirov 13733 | -5/Zhirov | Learned location of Command (-1) 13733 | -5/Zhirov | Learned location of Quarantine (-2) 13733 | -5/Zhirov | Learned location of Testing (-3) 13737 | -5/Zhirov | Zhirov requested help retrieving the SGEMP Prototype 13743 | -5/Zhirov | Found Alien Artifact 13744 | -5/Zhirov | Identified Integrated Dissipator 13744 | -5/Zhirov | Installed Integrated Dissipator, increased core heat dissipation (+20) 13775 | -5/Zhirov | Found Alien Artifact 13794 | -5/Zhirov | Entered Proximity Caves 13839 | -4/Proximity Caves | Spotted B-86 Titan 13858 | -4/Proximity Caves | Spotter reported a threat 13898 | -4/Proximity Caves | Discovered new exit (range 13) 13903 | -4/Proximity Caves | Entered Factory 13903 | -4/Factory | Evolved 2 slots: Utility x2 14016 | -4/Factory | Found Quantum Capacitor 14020 | -4/Factory | Manually triggered Chute Trap 14020 | -4/Factory | Sucked down chute 14020 | -4/Factory | Entered Waste 14035 | -4/Waste | EMP discharged 14054 | -4/Waste | Spotted C-40 Crusher 14057 | -4/Waste | Spotted C-40 Crusher 14058 | -4/Waste | Spotted C-40 Crusher 14067 | -4/Waste | Spotted C-40 Crusher 14078 | -4/Waste | Discovered new exit (range 13) 14090 | -4/Waste | Spotted C-40 Crusher 14104 | -4/Waste | Spotted C-40 Crusher 14129 | -4/Waste | Entered Factory 14304 | -4/Factory | Fabricated Adv. Cryofiber Web? 14378 | -4/Factory | System corruption reached 10% 14550 | -4/Factory | Identified exit to Upper Caves 14550 | -4/Factory | Identified exit to Armory 14778 | -4/Factory | Entered Upper Caves 14918 | -4/Upper Caves | Discovered new exit (range 10) 14925 | -4/Upper Caves | Entered another Upper Caves area 15115 | -4/Upper Caves | Spotted B-86 Titan 15157 | -4/Upper Caves | Discovered new exit (range 15) 15171 | -4/Upper Caves | Encountered a Warlord checkpoint 15172 | -4/Upper Caves | Entered Warlord 15205 | -4/Warlord | System corruption cleaned by Quarantine Array 15607 | -4/Warlord | Found Prototype Hackware 15610 | -4/Warlord | Found Prototype Processor 15623 | -4/Warlord | Found Exp. Targeting Computer 15756 | -4/Warlord | Learned Research security intel 15756 | -4/Warlord | Learned Armory terminal intel 15756 | -4/Warlord | Learned Research repair station intel 15756 | -4/Warlord | Learned Armory security intel 15756 | -4/Warlord | Learned 4 Command zone layouts 15756 | -4/Warlord | Learned 4 Research zone layouts 15756 | -4/Warlord | Learned 4 Armory zone layouts 15756 | -4/Warlord | Learned 4 Research zone layouts 15756 | -4/Warlord | Learned Research stockpile data 15775 | -4/Warlord | Build established: Commander-Construct 15794 | -4/Warlord | Visited the Vortex Lab 15803 | -4/Warlord | Found Prototype Energy Cannon 15804 | -4/Warlord | Found Prototype Energy Cannon 15811 | -4/Warlord | Found Prototype Launcher 15814 | -4/Warlord | Warlord's base attacked by MAIN.C 15850 | -4/Warlord | Met Warlord 15880 | -4/Warlord | Identified Exp. Armor Integrity Analyzer 15963 | -4/Warlord | Lost 4 allies 16081 | -4/Warlord | Lost 4 allies 16164 | -4/Warlord | Warlord forces counterattacked 16234 | -4/Warlord | Build established: Construct 16292 | -4/Warlord | Spotted Executioner 16316 | -4/Warlord | Discovered new exit (range 12) 16320 | -4/Warlord | Lost 11 allies 16321 | -4/Warlord | Entered Proximity Caves 16323 | -3/Proximity Caves | Spotter reported a threat 16324 | -3/Proximity Caves | Spotter reported a threat 16530 | -3/Proximity Caves | Attracted the attention of an 0b10 checkpoint 16644 | -3/Proximity Caves | Spotter reported a threat 16759 | -3/Proximity Caves | Spotter reported a threat 16807 | -3/Proximity Caves | Received a Behemoth hack from an annoying Tinkerer 16883 | -3/Proximity Caves | Core integrity fell below 50% 16923 | -3/Proximity Caves | Discovered new exit (range 14) 16934 | -3/Proximity Caves | Entered Research 16934 | -3/Research | Evolved 2 slots: Power x1, Utility x1 16935 | -3/Research | Identified exit to Research 16935 | -3/Research | Identified exit to Testing 16938 | -3/Research | Loaded intel: 4 repair station locations 16959 | -3/Research | Lost 6 parts (2p2u2w) 17032 | -3/Research | Spotted B-86 Titan 17052 | -3/Research | Entered Testing 17066 | -3/Testing | Identified System Mapper 17136 | -3/Testing | Found Prototype Device 17137 | -3/Testing | Identified Exp. Thermal Shield 17141 | -3/Testing | Protovariant out of control (PL-9Y9Y3LCIOC) 17141 | -3/Testing | Unleashed a protovariant (PL-9Y9Y3LCIOC) 17176 | -3/Testing | Fabricated Enh. Hardcell Cannon (x2) 17215 | -3/Testing | Spotted Investigator 17216 | -3/Testing | Identified Vortex Catalyst Activator 17248 | -3/Testing | Scanned by Researcher 17270 | -3/Testing | Destroyed Investigator 17280 | -3/Testing | Found Prototype Launcher 17281 | -3/Testing | Identified Containment Facilitator 17394 | -3/Testing | Watched by a mysterious "MATRIX" hacker. 17485 | -3/Testing | Found Portable AFG 17524 | -3/Testing | Build established: Hacker-Gunner 17680 | -3/Testing | System corruption reached 10% 17705 | -3/Testing | Lost 5 parts (1p3u1w) 17712 | -3/Testing | Found Prototype Hackware 17980 | -3/Testing | Found Prototype Energy Cannon 17981 | -3/Testing | Identified Null Cannon 18011 | -3/Testing | Entered Research 18011 | -2/Research | Warlord forces began assault on 0b10 18011 | -2/Research | Evolved 2 slots: Utility x2 18012 | -2/Research | Identified exit to Quarantine 18052 | -2/Research | Identified Ghost Barrier 18121 | -2/Research | Research machine network offline 18148 | -2/Research | Spotted B-90 Cyclops 18188 | -2/Research | Identified Transdimensional Reconstructor 18188 | -2/Research | Warped through subspace 18353 | -2/Research | Build established: Hacker-Construct 18556 | -2/Research | Met up with Warlord 18559 | -2/Research | P-80 Master assimilated allied GR-UEE(K) 18560 | -2/Research | Spotted GR-UEE(K) 18590 | -2/Research | Borebot progress halted 18595 | -2/Research | Borebot progress halted 18629 | -2/Research | Spotted Striker 18630 | -2/Research | Spotted Striker 18634 | -2/Research | Met DD-05H 18657 | -2/Research | Spotted Striker 18720 | -2/Research | Spotted Striker 18723 | -2/Research | Destroyed Striker 18773 | -2/Research | Spotted Striker 18776 | -2/Research | Spotted Striker 18790 | -2/Research | Destroyed Striker 18796 | -2/Research | Destroyed Striker 18851 | -2/Research | Spotted Executioner 18851 | -2/Research | Spotted Striker 18862 | -2/Research | Destroyed Executioner 18866 | -2/Research | Destroyed Striker 18897 | -2/Research | Spotted B-90 Cyclops 19001 | -2/Research | Discovered new exit (range 8) 19268 | -2/Research | Spotted Striker 19270 | -2/Research | Destroyed Striker 19292 | -2/Research | Lost 5 allies 19515 | -2/Research | Given Cave Seal Controls access code 19515 | -2/Research | Entered Quarantine 19516 | -2/Quarantine | Spotted Alpha 7 19517 | -2/Quarantine | Destroyed Alpha 7 19524 | -2/Quarantine | Found Prototype Device 19534 | -2/Quarantine | Found Alien Launcher 19538 | -2/Quarantine | Identified Exp. ECM Suite 19547 | -2/Quarantine | Found Prototype Energy Gun 19592 | -2/Quarantine | Lost 4 allies 19728 | -2/Quarantine | Found Alien Impact Weapon 19744 | -2/Quarantine | Cryocooling Duct disabled 19758 | -2/Quarantine | Discovered new exit (range 6) 19759 | -2/Quarantine | Ambient heat levels rising (+20) 19759 | -2/Quarantine | Non-combat units ordered to evacuate 20068 | -2/Quarantine | Found Alien Artifact 20069 | -2/Quarantine | Identified Dimensional Node Initializer 20069 | -2/Quarantine | Initialized slip node 20073 | -2/Quarantine | Found Dimensional Node Initializer 20080 | -2/Quarantine | Found Alien Artifact 20086 | -2/Quarantine | Found Alien Artifact 20087 | -2/Quarantine | Identified Hpw. Transdimensional Reconstructor (x2) 20087 | -2/Quarantine | Warped through subspace to slip node 20091 | -2/Quarantine | Found Transdimensional Reconstructor 20093 | -2/Quarantine | Found Transdimensional Reconstructor 20097 | -2/Quarantine | Found Dimensional Node Initializer 20109 | -2/Quarantine | Found Alien Artifact 20192 | -2/Quarantine | Found Alien Energy Cannon 20309 | -2/Quarantine | Warped through subspace to slip node 20338 | -2/Quarantine | Lost 7 parts (1p5u1w) 20356 | -2/Quarantine | Core integrity fell below 50% 20434 | -2/Quarantine | Found Alien Artifact 20449 | -2/Quarantine | System corruption reached 10% 20476 | -2/Quarantine | Spotted Fortress 20529 | -2/Quarantine | Discovered new exit (range 6) 20529 | -2/Quarantine | Discovered new exit (range 7) 20533 | -2/Quarantine | Entered Section 7 20619 | -2/Section 7 | Found Alien Artifact 20620 | -2/Section 7 | Identified Core Reset Matrix 20620 | -2/Section 7 | Identified Terrabomb 20620 | -2/Section 7 | Identified Core Cannon 20620 | -2/Section 7 | Identified Subatomic Replicator 20620 | -2/Section 7 | Identified Core Stripper 20620 | -2/Section 7 | Identified Sigix Terminator 20620 | -2/Section 7 | Used Core Reset Matrix 20624 | -2/Section 7 | Detected hypermatrix surge 20624 | -2/Section 7 | Sensed 22 artifacts in vicinity 20652 | -2/Section 7 | Spotted B-90 Cyclops 20677 | -2/Section 7 | Found Microwarp Drive 20698 | -2/Section 7 | Build established: Mutant 20798 | -2/Section 7 | Core integrity fell below 20% 20846 | -2/Section 7 | Warped through subspace 20876 | -2/Section 7 | Lost 4 parts (3u1w) 20895 | -2/Section 7 | Destroyed by S-43 Plague with Heavy Machine Gun Last Messages --------------- 20845_ Acquired Exp. Matter Compressor. 20845_ Imp. Weapon Cycler destroyed. 20845_ Penetrated by Slug. 20845_ Slug penetrates Wall. 20846_ Warped through subspace. 20850_ System corrupted: Matter fused (-3). 20868_ System corrupted: Heat flow error (+220). 20869_ Dropped Adv. Corruption Screen. 20869_ Dropped Adv. Recalibrator. 20871_ Acquired Unknown Flight Unit. 20878_ Penetrated by Slug. 20878_ Slug penetrates Door. 20881_ Slug penetrates Wall. 20887_ System corrupted: Energy discharge (-34). 20887_ Slug penetrates Wall. 20893_ Linear Gravjet destroyed. 20893_ Dropped Hcp. Storage Unit. 20895_ Portable AFG generating attraction field. 20895_ Acquired 40 matter. 20895_ Identified Impulse Thruster Array. Map ----- +----------------------------------------------------+ | ????????????????????# "!" # # """ | | ????????????????????# """ # # | | ????????????????????# # # | | ????????????????????# # # | | ????????????????????# # ######### # | | ????????????????????# # #????????## | | ????????????????????# # #?????????? | | ????????????????????# # #?????????? | | ???????????????????##########+#### #?????????? | | ???????????????????# #?????????? | | ???????????????????# #?????????? | | ???????????????????# #?????????? | | ???????????????????+ #?????????? | | ???????????????????# ###+###########?????????? | | ???????????????????# # #?????????????? | | ???????????????##### #! #?????????????? | | ???????????????? # #?????????????? | | ???????????????? # """"""" #?????????????? | | ??????????????? # """"""" #?????????????? | | ?????????????? # """"""" #?????????????? | | ?????????????####### # #?????????????? | | ???????????????????# # #?????????????? | | ????????????????#### ###########?????????????? | | ????????????????# s ######???????????? | | ????????????????# ! = #???????????? | | ????????????????# *&!=@*s +???????????? | | ????????????????# !!s Ag #???!???????? | | ???????????????######!######## #???????????? | | ???????????????# ]!]!% ] #???? #???????????? | | ???????????????# |! #???????????????????? | | ???????????????# ! ! #???????????????????? | | ???????????????# !![[ #???????????????????? | | ???????????????#" !=[[ #???????????????????? | | ???????????????#" =[[ #???????????????????? | | ???????????????#" =[ #???????????????????? | | ???????????????#T #???????????????????? | | ???????????????#" """"""" #???????????????????? | | ???????????????#" """"""" #???????????????????? | | ???????????????#" """"""" #???????????????????? | | ???????????????# #???????????????????? | | ???????????????###? #########???????????????????? | | ????????????????????????????????????????????????? | | ????????????????????????????????????????????????? | | | | | | | | | | | | | | | +----------------------------------------------------+ Best States ------------- Heat Dissipation 145 Energy Generation 100 Energy Capacity 2380 Matter Stores 300 Matter Capacity 300 Sight Range 16 Robot Scan Range 16 Terrain Scan Density 10 ECM Strength 3 Jamming Range 12 Cloak Strength 2 Power Amplification 40 Base Temperature (-) 200 Armor Coverage 800 Resistance: TH 30 Resistance: EM 15 Utility Shielding 66 Weapon Cycling 20 Phase Shifting 15 Evasion (%) 80 Targeting Accuracy 12 Core Analysis 6 Armor Integrity Analysis 50 Recoil Reduction 5 Offensive Hacking 30 Defensive Hacking 20 Authchip Count 1 Item Schematics ----------------- None Robot Schematics ------------------ None Fabricated ------------ Adv. Cryofiber Web | x2 | -4/Factory | Preloaded Enh. Hardcell Cannon | x2 | -3/Testing | Preloaded Repaired ---------- Nothing Studied --------- None Alien Tech Used ----------------- Integrated Dissipator Transdimensional Reconstructor Dimensional Node Initializer High-powered Transdimensional Reconstructor Core Reset Matrix Achievements -------------- None Challenges ------------ None Game ------ Seed DisruptionDisposableBlaster Manual? 0 Play Time 03:15:44 Cumulative 796.0 hours Start 2026.04.22 @ 15:26:32 End 2026.04.23 @ 02:15:34 Sessions 5 Manual Loads 0 Difficulty Rogue Special Mode None Game No. 971 Rogue 971 Adventurer 0 Explorer 0 Win Type - Total 31 Types 16/1/4/3/2/0/2/2/1/0 Lore% 97 Gallery% 95 Achievement% 87 Wizard Run 0 Options --------- Layout 0 ASCII 0 Keyboard 0 Movement Mouse Keybinds 0 Fullscreen 1 Font 24/Terminus Map View 76x50 Zoom Use 0% Tactical HUD 1 Map Filters NONE Filters NONE Steam 1 RUN: 0520db1a-5fbe-4133-a738-451ad7bfe63c